bitfinex/quotes_BTCUSD_20241021
["timestamp","ask_amount","ask_price","bid_price","bid_amount"]
[1729497597305,0.0084668,68542.0,68541.0,0.000828]
[1729497597537,0.0074668,68542.0,68541.0,0.000828]
[1729497597754,0.0084668,68542.0,68541.0,0.000828]
[1729497598205,0.0074668,68542.0,68541.0,0.000828]
[1729497598448,0.0084668,68542.0,68541.0,0.000828]
[1729497598660,0.0064668,68542.0,68541.0,0.000828]
[1729497599096,0.0074668,68542.0,68541.0,0.000828]
[1729497600011,0.0084668,68542.0,68541.0,0.000828]
[1729497601989,0.0064668,68542.0,68541.0,0.000828]
[1729497602216,0.0024668,68542.0,68541.0,0.000828]
[1729497602692,0.1473618,68542.0,68541.0,0.000828]
[1729497603161,0.0024668,68542.0,68541.0,0.000828]
[1729497603884,0.1493618,68542.0,68541.0,0.000828]
[1729497604137,0.0024668,68542.0,68541.0,0.000828]
[1729497604374,0.0034668,68542.0,68541.0,0.000828]
[1729497604615,0.1493618,68542.0,68541.0,0.000828]
[1729497609616,0.0034668,68542.0,68541.0,0.06771789]
[1729497609806,0.0034668,68542.0,68541.0,0.10047001]
[1729497610511,0.0034668,68542.0,68541.0,0.24636801]
[1729497610766,0.0051228,68542.0,68541.0,0.33366257]
[1729497611012,0.0051228,68542.0,68541.0,0.11136457]
[1729497611201,0.0031228,68542.0,68541.0,0.11136457]
[1729497611479,0.0051228,68542.0,68541.0,0.11136457]
[1729497611705,0.0051228,68542.0,68541.0,0.08969924]
[1729497611968,0.0041228,68542.0,68541.0,0.08969924]
[1729497612205,0.0051228,68542.0,68541.0,0.02407001]
[1729497612426,0.0041228,68542.0,68541.0,0.02407001]
[1729497613903,0.0051228,68542.0,68541.0,0.02407001]
[1729497614595,0.1510178,68542.0,68541.0,0.023828]
[1729497614813,0.1510178,68542.0,68541.0,0.04458516]
[1729497615046,0.2503178,68542.0,68541.0,0.04458516]
[1729497615288,0.2503178,68542.0,68541.0,0.000828]
[1729497615722,0.2503178,68542.0,68541.0,0.04458516]
[1729497616874,0.2503178,68542.0,68541.0,0.04482717]
[1729497617117,0.0051228,68542.0,68541.0,0.16996801]
[1729497617559,0.0051228,68542.0,68541.0,0.25726257]
[1729497618044,0.003656,68542.0,68541.0,0.25726257]
[1729497618993,0.003656,68542.0,68541.0,0.16996801]
[1729497619708,0.003656,68542.0,68541.0,0.40132716]
[1729497619924,0.001656,68545.0,68544.0,0.00024201]
[1729497620171,0.001656,68545.0,68544.0,0.16913301]
[1729497621586,0.001656,68545.0,68544.0,0.17605043]
[1729497622067,0.002656,68545.0,68544.0,0.17205043]
[1729497622305,0.002656,68545.0,68544.0,0.17813301]
[1729497623926,0.003656,68545.0,68544.0,0.18313301]
[1729497624140,0.001656,68545.0,68544.0,0.16913301]
[1729497624404,0.002656,68545.0,68544.0,0.17413301]
[1729497624657,0.003656,68545.0,68544.0,0.18313301]
[1729497626455,0.003656,68545.0,68544.0,0.29238972]
[1729497627264,0.003656,68545.0,68544.0,0.29239006]
[1729497628016,0.003656,68545.0,68544.0,0.29530744]
[1729497628505,0.003656,68545.0,68544.0,0.27344475]
[1729497628746,0.003656,68545.0,68544.0,0.28605039]
[1729497628988,0.003656,68545.0,68544.0,0.39529387]
[1729497629424,0.003656,68545.0,68544.0,0.28313301]
[1729497629655,0.003656,68545.0,68544.0,0.28605038]
[1729497630875,0.003656,68545.0,68544.0,0.43709216]
[1729497631102,0.003656,68545.0,68544.0,0.51239216]
[1729497633741,0.001656,68545.0,68544.0,0.49839216]
[1729497633987,0.003656,68545.0,68544.0,0.60509216]
[1729497634435,0.001656,68545.0,68544.0,0.59209216]
[1729497634899,0.002656,68545.0,68544.0,0.60109216]
[1729497635146,0.003656,68545.0,68544.0,0.60509216]
[1729497635373,0.002656,68545.0,68544.0,0.60109216]
[1729497636635,0.001656,68545.0,68544.0,0.59209216]
[1729497636891,0.001656,68545.0,68544.0,0.60009216]
[1729497637089,0.001656,68545.0,68544.0,0.59909216]
[1729497637561,0.001656,68545.0,68544.0,0.60709216]
[1729497638251,0.001656,68545.0,68544.0,0.59209216]
[1729497638735,0.001656,68545.0,68544.0,0.60709216]
[1729497639949,0.001656,68545.0,68544.0,0.59909216]
[1729497640180,0.002656,68545.0,68544.0,0.60809216]
[1729497640472,0.002656,68545.0,68544.0,0.60109216]
[1729497640708,0.003656,68545.0,68544.0,0.60909216]
[1729497646963,0.003656,68545.0,68544.0,0.51539216]
[1729497649310,0.003656,68545.0,68544.0,0.62448886]
[1729497649532,0.003656,68545.0,68544.0,0.51539216]
[1729497661391,0.003656,68545.0,68544.0,0.6463887]
[1729497662389,0.003656,68545.0,68544.0,0.51539216]
[1729497662629,0.001656,68552.0,68551.0,0.03824201]
[1729497662866,0.001656,68552.0,68551.0,0.51057716]
[1729497662867,0.21729252,68552.0,68551.0,0.51057716]
[1729497663387,0.001656,68552.0,68551.0,0.51057716]
[1729497663891,0.001656,68552.0,68551.0,0.51857716]
[1729497664148,0.001656,68552.0,68551.0,0.52657716]
[1729497664401,0.001656,68552.0,68551.0,0.51857716]
[1729497664861,0.001656,68552.0,68551.0,0.52557716]
[1729497665577,0.001656,68552.0,68551.0,0.44807716]
[1729497665876,0.001656,68552.0,68551.0,0.46375721]
[1729497668874,0.001656,68552.0,68551.0,0.49295721]
[1729497672593,0.001656,68552.0,68551.0,0.57285721]
[1729497673762,0.001656,68552.0,68551.0,0.65775721]
[1729497674004,0.001656,68552.0,68551.0,0.64975721]
[1729497674290,0.001656,68552.0,68551.0,0.66675721]
[1729497674526,0.001656,68552.0,68551.0,0.65775721]
[1729497674957,0.001656,68552.0,68551.0,0.66675721]
[1729497675424,0.001656,68552.0,68551.0,0.65875721]
[1729497675843,0.001656,68552.0,68551.0,0.66675721]
[1729497676157,0.001656,68552.0,68551.0,0.65975721]
[1729497676388,0.001656,68552.0,68551.0,0.66675721]
[1729497677349,0.001656,68552.0,68551.0,0.65175721]
[1729497677580,0.001656,68552.0,68551.0,0.66075721]
[1729497677811,0.001656,68552.0,68551.0,0.65175721]
[1729497678793,0.001656,68552.0,68551.0,0.65975721]
[1729497679122,0.001656,68552.0,68551.0,0.66875721]
[1729497682890,1e-06,68552.0,68551.0,0.66875721]
[1729497683121,1e-06,68552.0,68551.0,0.71340743]
[1729497683352,0.002,68555.0,68554.0,0.01724201]
[1729497683586,0.002,68555.0,68554.0,0.63547116]
[1729497683817,0.002,68555.0,68554.0,0.68012138]
[1729497684767,0.002,68563.0,68562.0,0.47929501]
[1729497685005,0.002,68563.0,68562.0,0.64044215]
[1729497686705,0.002,68563.0,68562.0,0.65744215]
[1729497686943,0.002,68563.0,68562.0,0.64944215]
[1729497687407,0.002,68563.0,68562.0,0.65744215]
[1729497691661,0.002,68563.0,68562.0,0.66482483]
[1729497691895,0.002,68563.0,68562.0,0.65582483]
[1729497692131,0.002,68563.0,68562.0,0.66382483]
[1729497692375,0.002,68563.0,68562.0,0.67182483]
[1729497692620,0.002,68563.0,68562.0,0.65582483]
[1729497692855,0.002,68563.0,68562.0,0.66382483]
[1729497693089,0.002,68563.0,68562.0,0.57682483]
[1729497693320,0.002,68563.0,68562.0,0.57882483]
[1729497694259,0.003656,68563.0,68562.0,0.57882483]
[1729497698061,0.103656,68563.0,68562.0,0.57882483]
[1729497700322,0.074456,68563.0,68562.0,0.57882483]
[1729497700808,0.21729252,68571.0,68570.0,0.21327801]
[1729497701023,0.21729252,68571.0,68570.0,0.46423716]
[1729497701476,0.001656,68571.0,68570.0,0.46423716]
[1729497702161,0.001656,68571.0,68570.0,0.47223716]
[1729497702631,0.001656,68571.0,68570.0,0.47823716]
[1729497703341,0.001656,68571.0,68570.0,0.58713626]
[1729497703551,0.001656,68571.0,68570.0,0.58913626]
[1729497704684,0.001656,68571.0,68570.0,0.58113626]
[1729497704923,0.001656,68571.0,68570.0,0.46423716]
[1729497705134,0.001656,68571.0,68570.0,0.48023716]
[1729497706760,0.001656,68571.0,68570.0,0.49587268]
[1729497706994,0.001656,68571.0,68570.0,0.49387268]
[1729497710152,0.001656,68571.0,68570.0,0.57137268]
[1729497711629,0.001656,68571.0,68570.0,0.61604561]
[1729497711862,0.001656,68571.0,68570.0,0.80916047]
[1729497712337,0.001656,68571.0,68570.0,0.61604561]
[1729497712584,0.001656,68571.0,68570.0,0.80916047]
[1729497713776,0.001656,68571.0,68570.0,0.61604561]
[1729497716592,0.001656,68571.0,68570.0,0.80920954]
[1729497716812,0.001656,68571.0,68570.0,0.80120954]
[1729497717274,0.001656,68571.0,68570.0,0.61604561]
[1729497717762,0.001658,68576.0,68573.0,0.04644201]
[1729497717985,0.001658,68576.0,68573.0,0.70213866]
[1729497718220,0.21429452,68580.0,68579.0,0.00524201]
[1729497718456,0.0909,68581.0,68580.0,0.30325701]
[1729497718685,0.0909,68581.0,68580.0,0.45221616]
[1729497718914,0.21563652,68603.0,68595.0,0.14602501]
[1729497719149,0.30643652,68596.0,68595.0,0.16902501]
[1729497719622,0.1702,68596.0,68595.0,0.16902501]
[1729497720548,0.1702,68596.0,68595.0,0.31798416]
[1729497722942,0.1702,68596.0,68595.0,0.33398416]
[1729497723658,0.1702,68596.0,68595.0,0.34946362]
[1729497725121,0.1702,68596.0,68595.0,0.41492744]
[1729497725648,0.1702,68596.0,68595.0,0.34146362]
[1729497725853,0.1702,68596.0,68595.0,0.42874872]
[1729497726567,0.1702,68596.0,68595.0,0.43674872]
[1729497728265,0.1702,68596.0,68595.0,0.42075426]
[1729497728499,0.1702,68596.0,68595.0,0.34146362]
[1729497728786,0.1702,68596.0,68595.0,0.35446362]
[1729497728787,0.0908,68596.0,68595.0,0.35446362]
[1729497729047,0.0908,68596.0,68595.0,0.48542077]
[1729497729304,0.0908,68596.0,68595.0,0.48366362]
[1729497730054,0.006,68597.0,68596.0,0.30322301]
[1729497730287,0.006,68597.0,68596.0,0.58308698]
[1729497730840,0.006,68597.0,68596.0,0.58305485]
[1729497731094,0.006,68597.0,68596.0,0.59305485]
[1729497731323,0.006,68597.0,68596.0,0.46494015]
[1729497731601,28.52981784,68596.0,68595.0,0.32046246]
[1729497732103,28.52981784,68596.0,68595.0,0.32646246]
[1729497732318,28.52981784,68596.0,68595.0,0.32046246]
[1729497733044,28.52981784,68596.0,68595.0,0.46942161]
[1729497733295,28.52981784,68596.0,68595.0,0.47742161]
[1729497733570,28.52981784,68596.0,68595.0,0.47542161]
[1729497733824,28.62711784,68596.0,68595.0,0.47542161]
[1729497734072,28.62811784,68596.0,68595.0,0.48242161]
[1729497734305,28.62711784,68596.0,68595.0,0.5625764]
[1729497734536,28.52981784,68596.0,68595.0,0.47542161]
[1729497735025,28.53081784,68596.0,68595.0,0.47442161]
[1729497735270,28.53081784,68596.0,68595.0,0.56156218]
[1729497735519,28.53081784,68596.0,68595.0,0.48242161]
[1729497735747,28.53081784,68596.0,68595.0,0.47442161]
[1729497735992,28.53081784,68596.0,68595.0,0.48242161]
[1729497736244,28.53081784,68596.0,68595.0,0.56954867]
[1729497736473,28.53081784,68596.0,68595.0,0.56954806]
[1729497736726,28.53081784,68596.0,68595.0,0.48242161]
[1729497737197,28.53081784,68596.0,68595.0,0.56953751]
[1729497738385,28.53081784,68596.0,68595.0,0.56953735]
[1729497738612,28.53081784,68596.0,68595.0,0.48242161]
[1729497742210,28.53081784,68596.0,68595.0,0.48324861]
[1729497742448,28.53247184,68596.0,68595.0,0.48324861]
[1729497744257,28.70587184,68596.0,68595.0,0.59211352]
[1729497745167,28.70587184,68596.0,68595.0,0.57034439]
[1729497745400,28.70587184,68596.0,68595.0,0.48324861]
[1729497745633,28.70587184,68596.0,68595.0,0.57035151]
[1729497747498,28.70587184,68596.0,68595.0,0.48324861]
[1729497749478,28.70587184,68596.0,68595.0,0.5921431]
[1729497750388,28.70587184,68596.0,68595.0,0.31518395]
[1729497750649,28.71087184,68596.0,68595.0,0.03130646]
[1729497750883,28.71087184,68596.0,68595.0,0.015827]
[1729497751364,28.70987184,68596.0,68595.0,0.15461]
[1729497751838,28.70487184,68596.0,68595.0,0.15461]
[1729497752095,28.70487184,68596.0,68595.0,0.14661]
[1729497752332,28.70987184,68596.0,68595.0,0.14661]
[1729497752560,28.70987184,68596.0,68595.0,0.008827]
[1729497752793,28.71087184,68596.0,68595.0,0.15361]
[1729497753282,28.70987184,68596.0,68595.0,0.15461]
[1729497753745,28.85565284,68596.0,68595.0,0.008827]
[1729497753989,28.70987184,68596.0,68595.0,0.008827]
[1729497754220,28.71087184,68596.0,68595.0,0.16161]
[1729497754693,28.71087184,68596.0,68595.0,0.015827]
[1729497754918,28.71087184,68596.0,68595.0,0.16161]
[1729497755142,28.72087184,68596.0,68595.0,0.16161]
[1729497756065,28.72087184,68596.0,68595.0,0.015827]
[1729497758986,28.86665284,68596.0,68595.0,0.015827]
[1729497759228,28.72087184,68596.0,68595.0,0.015827]
[1729497766440,28.72087184,68596.0,68595.0,0.16161]
[1729497767111,28.72087184,68596.0,68595.0,0.015827]
[1729497777916,28.53747184,68596.0,68595.0,0.33356915]
[1729497778193,28.53247184,68596.0,68595.0,0.61046915]
[1729497778439,28.48679451,68596.0,68595.0,0.64463915]
[1729497778669,28.37069339,68596.0,68595.0,1.91000558]
[1729497778929,27.56089771,68596.0,68595.0,1.86699223]
[1729497779192,27.17046879,68596.0,68595.0,1.75109223]
[1729497779438,27.14966879,68596.0,68595.0,1.75109223]
[1729497779701,27.14966879,68596.0,68595.0,1.75909223]
[1729497779914,27.14966879,68596.0,68595.0,1.75109223]
[1729497780191,27.14966879,68596.0,68595.0,1.79256042]
[1729497780435,22.51046488,68596.0,68595.0,1.79256042]
[1729497780654,22.09453877,68596.0,68595.0,1.78822709]
[1729497780868,21.00951677,68596.0,68595.0,1.79422709]
[1729497781090,20.55430136,68596.0,68595.0,1.79422709]
[1729497781338,20.0617775,68596.0,68595.0,1.78822709]
[1729497781603,20.0617775,68596.0,68595.0,1.8328343]
[1729497781604,17.08102111,68596.0,68595.0,1.8328343]
[1729497781820,16.79419929,68596.0,68595.0,1.86072938]
[1729497782053,16.76492386,68596.0,68595.0,1.86072938]
[1729497782293,16.31509914,68596.0,68595.0,1.86272938]
[1729497782530,15.92350805,68596.0,68595.0,2.04767537]
[1729497782738,11.4093559,68596.0,68595.0,2.55324124]
[1729497782960,11.31454848,68596.0,68595.0,2.49202652]
[1729497783186,11.31454848,68596.0,68595.0,2.05164552]
[1729497783187,11.23027848,68596.0,68595.0,2.05164552]
[1729497783413,10.65701392,68596.0,68595.0,2.09379328]
[1729497783653,10.33851661,68596.0,68595.0,2.09379328]
[1729497783898,10.18708561,68596.0,68595.0,2.54024762]
[1729497784150,9.73814783,68596.0,68595.0,2.72680491]
[1729497784401,9.06920054,68596.0,68595.0,1.81859452]
[1729497784613,9.06920054,68596.0,68595.0,1.77998731]
[1729497784898,8.48591628,68596.0,68595.0,1.75698731]
[1729497785122,8.04841202,68596.0,68595.0,1.75898731]
[1729497785353,8.04841202,68596.0,68595.0,1.75698731]
[1729497785584,7.98441203,68596.0,68595.0,1.75698731]
[1729497785809,7.65752584,68596.0,68595.0,1.76498731]
[1729497786034,7.62836984,68596.0,68595.0,1.75098731]
[1729497786274,7.50970005,68596.0,68595.0,1.77998731]
[1729497786498,7.50970005,68596.0,68595.0,1.78798731]
[1729497786499,7.50536132,68596.0,68595.0,1.78798731]
[1729497786730,7.35958132,68596.0,68595.0,1.91031675]
[1729497786955,6.76184498,68596.0,68595.0,1.78798731]
[1729497787178,6.73038498,68596.0,68595.0,1.78798731]
[1729497787419,6.29929895,68596.0,68595.0,1.78798731]
[1729497787641,6.22015547,68596.0,68595.0,1.82071841]
[1729497787911,6.16184347,68596.0,68595.0,1.82071841]
[1729497788131,5.66620324,68596.0,68595.0,1.82671841]
[1729497788357,5.66620324,68596.0,68595.0,1.81871841]
[1729497788581,5.22887501,68596.0,68595.0,1.81271841]
[1729497788803,4.64576678,68596.0,68595.0,1.82071841]
[1729497789049,4.20843855,68596.0,68595.0,1.81271841]
[1729497789287,4.20843855,68596.0,68595.0,1.82671841]
[1729497789509,3.7628266,68596.0,68595.0,1.81871841]
[1729497789755,2.40542227,68596.0,68595.0,1.77998731]
[1729497790012,1.51018878,68596.0,68595.0,2.65529188]
[1729497790263,1.45846972,68596.0,68595.0,2.583157]
[1729497790490,1.45846972,68596.0,68595.0,2.575157]
[1729497790491,0.93265008,68596.0,68595.0,2.575157]
[1729497790726,0.52220108,68596.0,68595.0,1.77398731]
[1729497790969,0.52220108,68596.0,68595.0,1.77998731]
[1729497791187,0.204703,68596.0,68595.0,1.77998731]
[1729497791442,0.19494015,68596.0,68595.0,1.77998731]
[1729497791858,0.16578515,68596.0,68595.0,1.65098731]
[1729497791859,0.0380689,68596.0,68595.0,1.65098731]
[1729497792126,0.0380689,68596.0,68595.0,1.65898731]
[1729497792364,0.01109925,68596.0,68595.0,1.65698731]
[1729497792600,0.01109925,68596.0,68595.0,1.70685544]
[1729497792841,0.08428777,68606.0,68605.0,0.275761]
[1729497793075,0.001656,68608.0,68605.0,0.275761]
[1729497793076,0.001656,68608.0,68606.0,0.275759]
[1729497793299,0.001656,68608.0,68606.0,0.51129242]
[1729497793777,0.001656,68608.0,68606.0,0.42471815]
[1729497794274,0.001656,68608.0,68606.0,0.51129242]
[1729497794505,0.001656,68608.0,68607.0,0.275757]
[1729497794737,0.001656,68608.0,68607.0,0.42471615]
[1729497794975,0.015,68644.0,68610.0,0.281921]
[1729497795220,0.083552,68640.0,68631.0,0.245706]
[1729497795448,0.083552,68640.0,68631.0,0.42883515]
[1729497795904,0.083552,68640.0,68631.0,0.45383515]
[1729497796392,0.083552,68640.0,68631.0,0.46183515]
[1729497796880,0.083552,68640.0,68631.0,0.45183515]
[1729497797107,0.083552,68640.0,68631.0,0.45383515]
[1729497797344,0.083552,68640.0,68631.0,0.45783515]
[1729497797820,0.083552,68640.0,68631.0,0.45383515]
[1729497798055,0.083552,68640.0,68631.0,0.46183515]
[1729497798291,0.083552,68640.0,68631.0,0.45983515]
[1729497798765,0.083552,68640.0,68631.0,0.46183515]
[1729497798994,0.083552,68640.0,68631.0,0.45383515]
[1729497799241,0.083552,68640.0,68631.0,0.46183515]
[1729497799495,0.083552,68640.0,68631.0,0.45383515]
[1729497799964,0.001652,68640.0,68631.0,0.46183515]
[1729497800426,0.001652,68640.0,68631.0,0.48298181]
[1729497800694,0.001652,68640.0,68631.0,0.47698181]
[1729497801144,0.001652,68640.0,68631.0,0.47498181]
[1729497801627,1e-06,68632.0,68631.0,0.47698181]
[1729497801865,1e-06,68632.0,68631.0,0.60003358]
[1729497802112,1e-06,68632.0,68631.0,0.53324881]
[1729497802398,0.21563652,68655.0,68651.0,0.005]
[1729497802633,0.21563652,68655.0,68654.0,0.274827]
[1729497802913,0.0775,68661.0,68660.0,0.274815]
[1729497803110,0.0775,68661.0,68660.0,0.42377415]
[1729497803635,0.0775,68661.0,68660.0,0.42595901]
[1729497803879,0.0775,68661.0,68660.0,0.43095901]
[1729497804108,0.0775,68661.0,68660.0,0.42595901]
[1729497804851,0.0775,68661.0,68660.0,0.43195901]
[1729497805105,0.0775,68661.0,68660.0,0.40278901]
[1729497805338,0.0775,68661.0,68660.0,0.41078901]
[1729497805572,0.0775,68661.0,68660.0,0.39678901]
[1729497805828,0.0775,68661.0,68660.0,0.41078901]
[1729497806572,0.0775,68661.0,68660.0,0.41811892]
[1729497807117,0.0775,68661.0,68660.0,0.39678901]
[1729497807368,0.0775,68661.0,68660.0,0.245645]
[1729497807615,0.0775,68661.0,68660.0,0.251645]
[1729497808076,0.0775,68661.0,68660.0,0.253645]
[1729497808326,0.0775,68661.0,68660.0,0.251645]
[1729497808569,0.0775,68661.0,68660.0,0.25382985]
[1729497808810,0.0775,68661.0,68660.0,0.25582985]
[1729497809300,0.0775,68661.0,68660.0,0.26182985]
[1729497809568,0.0775,68661.0,68660.0,0.00818485]
[1729497809821,0.0775,68661.0,68660.0,0.01618485]
[1729497810523,0.0775,68661.0,68660.0,0.01018485]
[1729497810767,0.0775,68661.0,68660.0,0.15582985]
[1729497811000,0.0775,68661.0,68660.0,0.00818485]
[1729497811231,0.0775,68661.0,68660.0,0.01618485]
[1729497811460,0.005,68660.0,68656.0,0.1]
[1729497811692,0.274,68659.0,68656.0,0.1]
[1729497811924,0.0775,68658.0,68656.0,0.1]
[1729497812397,0.0775,68658.0,68645.0,0.21563652]
[1729497812627,0.0775,68658.0,68653.0,0.1]
[1729497812628,0.0825,68658.0,68653.0,0.1]
[1729497812864,0.0775,68656.0,68653.0,0.1]
[1729497813860,0.0775,68656.0,68647.0,0.1]
[1729497814088,0.0775,68656.0,68648.0,0.14895915]
[1729497814340,0.0775,68656.0,68649.0,0.1]
[1729497814589,0.0775,68656.0,68649.0,0.24895915]
[1729497814814,0.0785,68656.0,68653.0,0.152658]
[1729497815068,0.0825,68656.0,68655.0,0.145655]
[1729497815590,0.0835,68656.0,68655.0,0.145655]
[1729497815833,0.0825,68656.0,68655.0,0.145655]
[1729497816068,0.0825,68656.0,68653.0,0.296319]
[1729497816069,0.005,68655.0,68654.0,0.145657]
[1729497816818,0.005,68655.0,68653.0,0.007]
[1729497817089,0.077,68654.0,68653.0,0.007]
[1729497817356,0.077,68652.0,68650.0,0.36130152]
[1729497817863,0.077,68652.0,68650.0,0.145665]
[1729497818375,0.077,68652.0,68651.0,0.29462315]
[1729497819095,0.077,68652.0,68651.0,0.145664]
[1729497820317,0.005,68651.0,68650.0,0.006]
[1729497820551,0.0857,68651.0,68650.0,0.007]
[1729497820792,0.0907,68651.0,68645.0,0.1]
[1729497821014,0.0907,68651.0,68645.0,0.245676]
[1729497821687,0.0907,68651.0,68650.0,0.006]
[1729497821935,0.0917,68651.0,68650.0,0.012]
[1729497822422,0.281,68651.0,68650.0,0.012]
[1729497822640,0.28,68651.0,68650.0,0.006]
[1729497823100,0.28,68651.0,68646.0,0.145674]
[1729497823332,0.0757,68650.0,68648.0,0.145669]
[1729497823579,0.0757,68650.0,68647.0,0.291345]
[1729497823811,0.0757,68650.0,68649.0,0.145668]
[1729497824533,0.0817,68650.0,68649.0,0.04328685]
[1729497824776,0.0817,68650.0,68648.0,0.007]
[1729497824994,0.0807,68650.0,68648.0,0.02917]
[1729497825234,0.0817,68650.0,68649.0,0.013]
[1729497825441,0.0807,68650.0,68649.0,0.006]
[1729497825883,0.0807,68650.0,68649.0,0.013]
[1729497825884,0.0817,68650.0,68649.0,0.013]
[1729497826384,0.0817,68650.0,68649.0,0.007]
[1729497827520,0.0817,68650.0,68649.0,0.013]
[1729497831390,0.0917,68650.0,68649.0,0.013]
[1729497834972,0.0917,68650.0,68649.0,0.014654]
[1729497835230,0.0917,68650.0,68649.0,0.043824]
[1729497836460,0.0817,68650.0,68649.0,0.043824]
[1729497836701,0.0817,68650.0,68649.0,0.189492]
[1729497837393,0.0817,68650.0,68649.0,0.043824]
[1729497837630,0.0817,68650.0,68649.0,0.189492]
[1729497838766,0.0817,68650.0,68649.0,0.043824]
[1729497839025,0.0917,68650.0,68649.0,0.014654]
[1729497839474,0.0817,68650.0,68649.0,0.160322]
[1729497840890,0.0817,68650.0,68649.0,0.014654]
[1729497841929,0.0817,68650.0,68649.0,0.160322]
[1729497843142,0.0767,68650.0,68649.0,0.160322]
[1729497843660,0.0817,68650.0,68649.0,0.160322]
[1729497843883,0.0767,68650.0,68649.0,0.160322]
[1729497844371,0.0817,68650.0,68649.0,0.160322]
[1729497845087,0.001,68650.0,68649.0,0.189492]
[1729497845337,0.006,68650.0,68649.0,0.189492]
[1729497846054,0.001,68650.0,68649.0,0.189492]
[1729497846806,0.001,68650.0,68649.0,0.43845115]
[1729497847059,0.001,68650.0,68649.0,0.50378284]
[1729497847345,0.001,68650.0,68649.0,0.43845115]
[1729497847812,0.001,68650.0,68649.0,0.4988121]
[1729497848259,0.000827,68653.0,68652.0,0.274832]
[1729497848486,0.000827,68653.0,68652.0,0.53555805]
[1729497848727,0.000827,68653.0,68652.0,0.42379115]
[1729497850797,0.000827,68653.0,68652.0,0.42979115]
[1729497851269,0.000827,68653.0,68652.0,0.43479115]
[1729497852225,0.076727,68653.0,68652.0,0.39475645]
[1729497852437,0.076727,68653.0,68652.0,0.14017]
[1729497852673,0.076727,68653.0,68652.0,0.111]
[1729497853573,0.076727,68653.0,68652.0,0.005]
[1729497853817,0.077727,68653.0,68652.0,0.011]
[1729497854030,0.076727,68653.0,68650.0,0.04357576]
[1729497854249,0.076727,68653.0,68649.0,0.14522976]
[1729497854483,0.077727,68653.0,68652.0,0.011]
[1729497854964,0.077727,68653.0,68652.0,0.006]
[1729497856079,0.076727,68653.0,68650.0,0.04357576]
[1729497856306,0.076727,68653.0,68652.0,0.005]
[1729497856521,0.077727,68653.0,68652.0,0.005]
[1729497856743,0.076727,68653.0,68652.0,0.005]
[1729497856987,0.077727,68653.0,68652.0,0.156662]
[1729497857863,0.077727,68653.0,68652.0,0.151662]
[1729497859013,0.077727,68653.0,68652.0,0.156662]
[1729497859915,0.077727,68653.0,68652.0,0.15418565]
[1729497860346,0.077727,68653.0,68652.0,0.19780373]
[1729497860567,0.077727,68653.0,68652.0,0.21961278]
[1729497861221,0.077727,68653.0,68652.0,0.19780657]
[1729497861435,0.077727,68653.0,68652.0,0.15418565]
[1729497861868,0.077727,68653.0,68652.0,0.19780763]
[1729497862093,0.077727,68653.0,68652.0,0.15418565]
[1729497864865,0.077727,68653.0,68652.0,0.21961278]
[1729497865092,0.077727,68653.0,68652.0,0.24878278]
[1729497865319,0.077727,68653.0,68652.0,0.21961278]
[1729497865788,0.077727,68653.0,68652.0,0.15418565]
[1729497866015,0.077727,68653.0,68652.0,0.21961278]
[1729497866240,0.077727,68653.0,68652.0,0.15418565]
[1729497869168,0.077727,68653.0,68652.0,0.15583965]
[1729497869405,0.077727,68653.0,68652.0,0.22126678]
[1729497871072,0.077727,68653.0,68652.0,0.15583965]
[1729497877460,0.077727,68653.0,68652.0,0.22126678]
[1729497879282,0.076727,68653.0,68652.0,0.21774313]
[1729497879535,0.076727,68653.0,68652.0,0.06708113]
[1729497879759,0.076727,68653.0,68652.0,0.22374313]
[1729497879989,0.076727,68653.0,68652.0,0.2177632]
[1729497880210,0.076727,68653.0,68652.0,0.2127632]
[1729497880439,0.076727,68653.0,68652.0,0.0671012]
[1729497880666,0.076727,68653.0,68652.0,0.0781012]
[1729497881379,0.076727,68653.0,68652.0,0.2237632]
[1729497882783,0.076727,68653.0,68652.0,0.22377879]
[1729497883455,0.076727,68653.0,68652.0,0.158316]
[1729497885345,0.076727,68653.0,68652.0,0.27476972]
[1729497885795,0.076727,68653.0,68652.0,0.187486]
[1729497886509,0.076727,68653.0,68652.0,0.27476972]
[1729497887006,0.076727,68653.0,68652.0,0.187486]
[1729497887247,0.076727,68653.0,68652.0,0.27476972]
[1729497889840,0.015,68652.0,68651.0,0.04366386]
[1729497890071,0.005,68639.0,68634.0,0.21563652]
[1729497890308,0.005,68639.0,68635.0,0.145697]
[1729497890309,0.0805,68638.0,68635.0,0.145697]
[1729497890534,0.0805,68638.0,68634.0,0.21563652]
[1729497890535,0.005,68636.0,68634.0,0.21563652]
[1729497890777,0.005,68636.0,68630.0,0.01531041]
[1729497891003,0.0805,68638.0,68633.0,0.1457]
[1729497891004,0.005,68635.0,68633.0,0.1457]
[1729497891234,0.005,68635.0,68634.0,0.1457]
[1729497891953,0.005,68636.0,68634.0,0.1457]
[1729497892176,0.005,68635.0,68632.0,0.1]
[1729497892422,0.005,68635.0,68634.0,0.1457]
[1729497892652,0.005,68635.0,68634.0,0.1507]
[1729497893106,0.005,68635.0,68634.0,0.1457]
[1729497893333,0.005,68635.0,68634.0,0.1507]
[1729497893794,0.005,68635.0,68634.0,0.1457]
[1729497894251,0.005,68635.0,68634.0,0.1507]
[1729497894713,0.005,68635.0,68634.0,0.005]
[1729497894954,0.005,68635.0,68634.0,0.1507]
[1729497895176,0.005,68635.0,68634.0,0.1557]
[1729497895891,0.005,68636.0,68635.0,0.145698]
[1729497897267,0.005,68636.0,68635.0,0.150698]
[1729497897763,0.005,68636.0,68635.0,0.005]
[1729497897989,0.005,68636.0,68635.0,0.150698]
[1729497898217,0.005,68636.0,68635.0,0.155698]
[1729497898672,0.005,68636.0,68635.0,0.150698]
[1729497898900,0.005,68636.0,68635.0,0.155698]
[1729497899161,0.005,68636.0,68635.0,0.01]
[1729497899391,0.005,68636.0,68635.0,0.155698]
[1729497899853,0.005,68636.0,68635.0,0.150698]
[1729497900126,0.005,68636.0,68635.0,0.155698]
[1729497900351,0.005,68636.0,68635.0,0.150698]